[Event "*** SCC Grand Prix: Titled Tuesday Blitz"]
[Site "Chess.com"]
[Date "2020.08.04"]
[Round "10"]
[White "elohunter1999"]
[Black "Justinz"]
[Result "1-0"]
[WhiteElo "2473"]
[BlackElo "2351"]
[TimeControl "180+1"]
[EndTime "15:34:01 PDT"]
[Termination "elohunter1999 won by resignation"]

1. e4 {[%clk 0:03:00.9]} 1... c5 {[%clk 0:02:58]} 2. Nf3 {[%clk 0:03:00.7]} 2...
d6 {[%clk 0:02:58.2]} 3. d4 {[%clk 0:03:00.9]} 3... cxd4 {[%clk 0:02:59.1]} 4.
Nxd4 {[%clk 0:03:01.8]} 4... Nf6 {[%clk 0:02:59.4]} 5. Nc3 {[%clk 0:03:02]} 5...
a6 {[%clk 0:02:59.8]} 6. h3 {[%clk 0:03:02.2]} 6... e6 {[%clk 0:02:59.7]} 7. g4
{[%clk 0:03:02.3]} 7... Nfd7 {[%clk 0:03:00]} 8. g5 {[%clk 0:03:01.8]} 8... b5
{[%clk 0:02:59.6]} 9. a3 {[%clk 0:03:01.3]} 9... Bb7 {[%clk 0:02:59.7]} 10. h4
{[%clk 0:02:34.3]} 10... Nc6 {[%clk 0:02:58.3]} 11. Be3 {[%clk 0:02:31.6]} 11...
Rc8 {[%clk 0:02:56]} 12. Qd2 {[%clk 0:02:15.8]} 12... Be7 {[%clk 0:02:53.5]} 13.
O-O-O {[%clk 0:02:14.4]} 13... Nde5 {[%clk 0:02:53.2]} 14. Nxc6 {[%clk
0:01:55.2]} 14... Rxc6 {[%clk 0:02:44.8]} 15. f4 {[%clk 0:01:50.5]} 15... Nc4
{[%clk 0:02:43.3]} 16. Bxc4 {[%clk 0:01:50.4]} 16... Rxc4 {[%clk 0:02:43.6]} 17.
Qd3 {[%clk 0:01:44.2]} 17... Qc7 {[%clk 0:02:42]} 18. Bd4 {[%clk 0:01:33.6]}
18... e5 {[%clk 0:02:22.5]} 19. fxe5 {[%clk 0:01:33.7]} 19... dxe5 {[%clk
0:02:22.6]} 20. Bxe5 {[%clk 0:01:34]} 20... Qc5 {[%clk 0:02:05.5]} 21. Qd7+
{[%clk 0:01:30.7]} 21... Kf8 {[%clk 0:02:04.5]} 22. Qxb7 {[%clk 0:01:29.4]} 1-0

[Event "*** SCC Grand Prix: Titled Tuesday Blitz"]
[Site "Chess.com"]
[Date "2020.08.04"]
[Round "10"]
[White "ketster"]
[Black "MVM2008"]
[Result "1-0"]
[WhiteElo "2393"]
[BlackElo "2238"]
[TimeControl "180+1"]
[EndTime "15:35:37 PDT"]
[Termination "ketster won by resignation"]

1. d4 {[%clk 0:03:00.9]} 1... Nf6 {[%clk 0:02:59.4]} 2. c4 {[%clk 0:03:01.1]}
2... g6 {[%clk 0:02:55.7]} 3. Nc3 {[%clk 0:03:00]} 3... Bg7 {[%clk 0:02:55.5]}
4. e4 {[%clk 0:02:58.4]} 4... d6 {[%clk 0:02:55.2]} 5. Nf3 {[%clk 0:02:58.9]}
5... O-O {[%clk 0:02:54.7]} 6. h3 {[%clk 0:02:59.5]} 6... e5 {[%clk 0:02:54.5]}
7. d5 {[%clk 0:02:58]} 7... Nbd7 {[%clk 0:02:53]} 8. Be3 {[%clk 0:02:57.2]} 8...
Nh5 {[%clk 0:02:45.2]} 9. g3 {[%clk 0:02:56.3]} 9... f5 {[%clk 0:02:28.4]} 10.
exf5 {[%clk 0:02:55.4]} 10... gxf5 {[%clk 0:02:07.6]} 11. Nh4 {[%clk 0:02:49.8]}
11... f4 {[%clk 0:01:57.9]} 12. Qxh5 {[%clk 0:02:46.6]} 12... fxe3 {[%clk
0:01:56.9]} 13. fxe3 {[%clk 0:02:46.7]} 13... Nf6 {[%clk 0:01:54]} 14. Qe2
{[%clk 0:02:42.5]} 14... c6 {[%clk 0:01:48.8]} 15. Bg2 {[%clk 0:02:38]} 15...
cxd5 {[%clk 0:01:40.1]} 16. Nxd5 {[%clk 0:02:37.4]} 16... Be6 {[%clk 0:01:39.5]}
17. O-O {[%clk 0:02:35.9]} 17... Rc8 {[%clk 0:01:31.8]} 18. Rac1 {[%clk
0:02:32.3]} 18... b5 {[%clk 0:01:24]} 19. Nf5 {[%clk 0:02:24.9]} 19... bxc4
{[%clk 0:01:04.2]} 20. Nde7+ {[%clk 0:02:21.1]} 20... Kh8 {[%clk 0:00:59.5]} 21.
Nxc8 {[%clk 0:02:21.1]} 21... Qxc8 {[%clk 0:00:58.2]} 22. Nxg7 {[%clk
0:02:20.8]} 22... Kxg7 {[%clk 0:00:59.1]} 23. Kh2 {[%clk 0:02:15.9]} 23... d5
{[%clk 0:00:50.6]} 24. b3 {[%clk 0:02:11.6]} 24... c3 {[%clk 0:00:35.4]} 25. Qd3
{[%clk 0:02:10.8]} 25... Qd8 {[%clk 0:00:28.4]} 26. Qxc3 {[%clk 0:02:07.6]}
26... d4 {[%clk 0:00:23.7]} 27. exd4 {[%clk 0:02:06.6]} 27... exd4 {[%clk
0:00:24.6]} 28. Qc7+ {[%clk 0:02:05]} 28... Qxc7 {[%clk 0:00:24.4]} 29. Rxc7+
{[%clk 0:02:05.9]} 29... Bd7 {[%clk 0:00:20.1]} 30. Rxf6 {[%clk 0:02:03.5]} 1-0

[Event "*** SCC Grand Prix: Titled Tuesday Blitz"]
[Site "Chess.com"]
[Date "2020.08.04"]
[Round "10"]
[White "Chesswizard_2007"]
[Black "1977Ivan"]
[Result "0-1"]
[WhiteElo "2502"]
[BlackElo "2682"]
[TimeControl "180+1"]
[EndTime "15:35:40 PDT"]
[Termination "1977Ivan won by checkmate"]

1. d4 {[%clk 0:03:00.9]} 1... Nf6 {[%clk 0:02:59]} 2. c4 {[%clk 0:02:52.2]} 2...
Nc6 {[%clk 0:02:58.9]} 3. Nf3 {[%clk 0:02:47]} 3... e6 {[%clk 0:02:58.2]} 4. Nc3
{[%clk 0:02:45.2]} 4... Bb4 {[%clk 0:02:57.2]} 5. Qc2 {[%clk 0:02:37.6]} 5... d6
{[%clk 0:02:56.3]} 6. a3 {[%clk 0:02:35.1]} 6... Bxc3+ {[%clk 0:02:55.3]} 7.
Qxc3 {[%clk 0:02:36]} 7... O-O {[%clk 0:02:53.9]} 8. g3 {[%clk 0:02:34.3]} 8...
e5 {[%clk 0:02:47.4]} 9. Bg2 {[%clk 0:02:31.3]} 9... e4 {[%clk 0:02:41.3]} 10.
Nd2 {[%clk 0:02:28.2]} 10... Bf5 {[%clk 0:02:40.5]} 11. Nf1 {[%clk 0:02:24.8]}
11... d5 {[%clk 0:02:14.6]} 12. Bg5 {[%clk 0:02:21.8]} 12... dxc4 {[%clk
0:02:11.9]} 13. Rd1 {[%clk 0:02:19.4]} 13... h6 {[%clk 0:02:06.1]} 14. Bxf6
{[%clk 0:02:18.1]} 14... Qxf6 {[%clk 0:02:07]} 15. Ne3 {[%clk 0:02:18.8]} 15...
Bg6 {[%clk 0:01:59.8]} 16. Nxc4 {[%clk 0:02:05.9]} 16... Rad8 {[%clk 0:01:53.5]}
17. e3 {[%clk 0:02:01.7]} 17... Rfe8 {[%clk 0:01:48]} 18. O-O {[%clk 0:02:01.3]}
18... Bh5 {[%clk 0:01:47.5]} 19. Rd2 {[%clk 0:02:00.7]} 19... Bf3 {[%clk
0:01:46.2]} 20. Na5 {[%clk 0:01:56.5]} 20... Bxg2 {[%clk 0:01:36.2]} 21. Kxg2
{[%clk 0:01:55.5]} 21... Qf3+ {[%clk 0:01:33.1]} 22. Kg1 {[%clk 0:01:54.6]}
22... Rd6 {[%clk 0:01:30.1]} 23. Nxb7 {[%clk 0:01:49.6]} 23... Rg6 {[%clk
0:01:28]} 24. d5 {[%clk 0:01:45.7]} 24... Ne5 {[%clk 0:01:26.1]} 25. Qxc7 {[%clk
0:01:40.5]} 25... Qh5 {[%clk 0:01:24.9]} 26. Kg2 {[%clk 0:01:06.8]} 26... Nf3
{[%clk 0:01:22.5]} 27. h3 {[%clk 0:01:03.4]} 27... Nxd2 {[%clk 0:01:21.4]} 28.
d6 {[%clk 0:01:02]} 28... Qf3+ {[%clk 0:01:19.4]} 29. Kg1 {[%clk 0:00:58.7]}
29... Rxg3+ {[%clk 0:01:17.5]} 30. fxg3 {[%clk 0:00:59.6]} 30... Qxf1+ {[%clk
0:01:17.2]} 31. Kh2 {[%clk 0:00:59]} 31... Nf3# {[%clk 0:01:17.3]} 0-1

[Event "*** SCC Grand Prix: Titled Tuesday Blitz"]
[Site "Chess.com"]
[Date "2020.08.04"]
[Round "10"]
[White "ajdemipopushi"]
[Black "coocloo"]
[Result "1-0"]
[WhiteElo "2255"]
[BlackElo "2010"]
[TimeControl "180+1"]
[EndTime "15:35:44 PDT"]
[Termination "ajdemipopushi won by resignation"]

1. Nf3 {[%clk 0:02:59.8]} 1... d5 {[%clk 0:02:57.8]} 2. g3 {[%clk 0:02:59.9]}
2... Nf6 {[%clk 0:02:58.1]} 3. c4 {[%clk 0:02:59.7]} 3... e6 {[%clk 0:02:58.5]}
4. Bg2 {[%clk 0:02:59.8]} 4... Be7 {[%clk 0:02:58.8]} 5. O-O {[%clk 0:02:59.5]}
5... O-O {[%clk 0:02:59.4]} 6. d4 {[%clk 0:02:59.1]} 6... c6 {[%clk 0:02:59.5]}
7. b3 {[%clk 0:02:58.6]} 7... b6 {[%clk 0:02:59.8]} 8. Qc2 {[%clk 0:02:58.6]}
8... Bb7 {[%clk 0:03:00.3]} 9. Nc3 {[%clk 0:02:58.6]} 9... Nbd7 {[%clk
0:03:00.2]} 10. Rd1 {[%clk 0:02:57.5]} 10... c5 {[%clk 0:03:00.4]} 11. dxc5
{[%clk 0:02:38.5]} 11... bxc5 {[%clk 0:02:58.3]} 12. cxd5 {[%clk 0:02:28.2]}
12... exd5 {[%clk 0:02:59.2]} 13. Ng5 {[%clk 0:02:06.8]} 13... h6 {[%clk
0:02:47.4]} 14. Nh3 {[%clk 0:01:52.8]} 14... Nb6 {[%clk 0:02:32]} 15. Nf4 {[%clk
0:01:47.6]} 15... Qd6 {[%clk 0:01:59.8]} 16. Bb2 {[%clk 0:01:14.2]} 16... Qd7
{[%clk 0:01:55.2]} 17. Ncxd5 {[%clk 0:01:06.4]} 17... Nbxd5 {[%clk 0:01:50.7]}
18. Nxd5 {[%clk 0:01:00.6]} 18... Bxd5 {[%clk 0:01:39.8]} 19. e4 {[%clk
0:00:56.9]} 19... Bxe4 {[%clk 0:01:31.5]} 20. Bxe4 {[%clk 0:00:54.6]} 20... Qb5
{[%clk 0:01:25.3]} 21. Bxa8 {[%clk 0:00:51.7]} 21... Rxa8 {[%clk 0:01:20.9]} 22.
Rac1 {[%clk 0:00:50.8]} 22... Rc8 {[%clk 0:01:18.1]} 23. Qf5 {[%clk 0:00:44.3]}
23... Qe2 {[%clk 0:01:14.5]} 24. Qxc8+ {[%clk 0:00:42.3]} 1-0

[Event "*** SCC Grand Prix: Titled Tuesday Blitz"]
[Site "Chess.com"]
[Date "2020.08.04"]
[Round "10"]
[White "goldenpuppy"]
[Black "ahachess"]
[Result "1-0"]
[WhiteElo "2430"]
[BlackElo "2286"]
[TimeControl "180+1"]
[EndTime "15:36:01 PDT"]
[Termination "goldenpuppy won on time"]

1. e4 {[%clk 0:03:00.9]} 1... c5 {[%clk 0:02:57.8]} 2. Nf3 {[%clk 0:03:00.4]}
2... d6 {[%clk 0:02:58]} 3. d4 {[%clk 0:03:00.4]} 3... cxd4 {[%clk 0:02:58.4]}
4. Nxd4 {[%clk 0:02:58.4]} 4... Nf6 {[%clk 0:02:58.8]} 5. Nc3 {[%clk 0:02:58.2]}
5... a6 {[%clk 0:02:59.1]} 6. Be3 {[%clk 0:02:58.1]} 6... g6 {[%clk 0:02:55.5]}
7. f3 {[%clk 0:02:56.4]} 7... Bg7 {[%clk 0:02:51.8]} 8. h4 {[%clk 0:02:56.4]}
8... h5 {[%clk 0:02:51.9]} 9. Be2 {[%clk 0:02:55.1]} 9... Nbd7 {[%clk
0:02:51.8]} 10. Qd2 {[%clk 0:02:55]} 10... b5 {[%clk 0:02:46.9]} 11. a3 {[%clk
0:02:53.8]} 11... Bb7 {[%clk 0:02:42]} 12. O-O-O {[%clk 0:02:36.1]} 12... Rc8
{[%clk 0:02:37.8]} 13. Kb1 {[%clk 0:02:35.7]} 13... Qc7 {[%clk 0:02:35.6]} 14.
Na2 {[%clk 0:02:35.1]} 14... Ne5 {[%clk 0:02:26.2]} 15. Nb3 {[%clk 0:02:31.1]}
15... Nc4 {[%clk 0:02:10.3]} 16. Bxc4 {[%clk 0:02:30.1]} 16... Qxc4 {[%clk
0:02:11.2]} 17. Na5 {[%clk 0:02:28.1]} 17... Qc7 {[%clk 0:02:10.5]} 18. Nxb7
{[%clk 0:02:27.1]} 18... Qxb7 {[%clk 0:02:10.1]} 19. Bd4 {[%clk 0:02:28]} 19...
Rc4 {[%clk 0:02:06.3]} 20. g4 {[%clk 0:02:25.1]} 20... Nxe4 {[%clk 0:01:58.7]}
21. fxe4 {[%clk 0:02:22.1]} 21... Rxd4 {[%clk 0:01:56.9]} 22. Qg5 {[%clk
0:02:14.1]} 22... Rxd1+ {[%clk 0:01:36]} 23. Rxd1 {[%clk 0:02:12.9]} 23... Qxe4
{[%clk 0:01:36.1]} 24. gxh5 {[%clk 0:02:11.6]} 24... Rxh5 {[%clk 0:01:28.9]} 25.
Qg1 {[%clk 0:02:09.1]} 25... Rc5 {[%clk 0:00:55.1]} 26. Nb4 {[%clk 0:02:02]}
26... a5 {[%clk 0:00:44.2]} 27. Nd3 {[%clk 0:02:01.3]} 27... Rc8 {[%clk
0:00:14.2]} 28. h5 {[%clk 0:01:55.4]} 1-0

[Event "*** SCC Grand Prix: Titled Tuesday Blitz"]
[Site "Chess.com"]
[Date "2020.08.04"]
[Round "10"]
[White "1f3_2g41-0"]
[Black "KyrgyzFighter"]
[Result "0-1"]
[WhiteElo "2415"]
[BlackElo "2330"]
[TimeControl "180+1"]
[EndTime "15:36:30 PDT"]
[Termination "KyrgyzFighter won by resignation"]

1. e4 {[%clk 0:03:00.9]} 1... d6 {[%clk 0:02:19.3]} 2. d4 {[%clk 0:02:57.8]}
2... Nf6 {[%clk 0:02:18.7]} 3. Nc3 {[%clk 0:02:57.7]} 3... e5 {[%clk 0:02:18.3]}
4. dxe5 {[%clk 0:02:57.2]} 4... dxe5 {[%clk 0:02:18.7]} 5. Qxd8+ {[%clk
0:02:57.9]} 5... Kxd8 {[%clk 0:02:19.6]} 6. Nf3 {[%clk 0:02:58.4]} 6... Bd6
{[%clk 0:02:03.5]} 7. Bc4 {[%clk 0:02:56.6]} 7... Ke7 {[%clk 0:01:58.9]} 8. O-O
{[%clk 0:02:55.7]} 8... Bg4 {[%clk 0:01:57.5]} 9. Ng5 {[%clk 0:02:51.4]} 9...
Rf8 {[%clk 0:01:54.6]} 10. h3 {[%clk 0:02:48.8]} 10... Bh5 {[%clk 0:01:54.3]}
11. g4 {[%clk 0:02:39.7]} 11... Bg6 {[%clk 0:01:53.1]} 12. Re1 {[%clk 0:02:39]}
12... Nc6 {[%clk 0:01:51.6]} 13. Nd5+ {[%clk 0:02:33.7]} 13... Nxd5 {[%clk
0:01:50.4]} 14. Bxd5 {[%clk 0:02:31.6]} 14... Nd4 {[%clk 0:01:48.2]} 15. c3
{[%clk 0:02:15.7]} 15... Nc2 {[%clk 0:01:46.8]} 16. Bd2 {[%clk 0:02:15.9]} 16...
Nxa1 {[%clk 0:01:46.3]} 17. Rxa1 {[%clk 0:02:14.8]} 17... c6 {[%clk 0:01:46.5]}
18. Bb3 {[%clk 0:02:12.8]} 18... Rad8 {[%clk 0:01:41.2]} 19. Be3 {[%clk
0:02:09.6]} 19... h6 {[%clk 0:01:39.9]} 20. Nf3 {[%clk 0:02:09.6]} 20... Bxe4
{[%clk 0:01:40]} 21. Nd2 {[%clk 0:02:08.7]} 21... Bd3 {[%clk 0:01:31.5]} 22.
Bxa7 {[%clk 0:02:03.9]} 22... c5 {[%clk 0:01:31.5]} 23. Bb6 {[%clk 0:02:03.9]}
23... Rc8 {[%clk 0:01:30.4]} 24. Bd5 {[%clk 0:02:02.5]} 24... Ba6 {[%clk
0:01:18.6]} 25. Re1 {[%clk 0:01:59.9]} 25... f5 {[%clk 0:01:18.6]} 26. c4 {[%clk
0:01:49.8]} 26... fxg4 {[%clk 0:01:14.4]} 27. hxg4 {[%clk 0:01:49.3]} 27... Rf4
{[%clk 0:01:13]} 28. f3 {[%clk 0:01:49.5]} 28... h5 {[%clk 0:01:09.6]} 29. Re4
{[%clk 0:01:35.6]} 29... Rcf8 {[%clk 0:01:06.7]} 30. gxh5 {[%clk 0:01:33.4]}
30... R8f5 {[%clk 0:01:00]} 31. Rxf4 {[%clk 0:01:28.3]} 31... exf4 {[%clk
0:01:00.3]} 32. Ne4 {[%clk 0:01:26.4]} 32... Rxh5 {[%clk 0:00:54.8]} 33. Nxc5
{[%clk 0:01:17.4]} 33... Bxc4 {[%clk 0:00:50.9]} 34. Bxc4 {[%clk 0:01:14.9]}
34... Bxc5+ {[%clk 0:00:50.2]} 35. Bxc5+ {[%clk 0:01:15.8]} 35... Rxc5 {[%clk
0:00:50.6]} 36. b3 {[%clk 0:01:16.6]} 36... b5 {[%clk 0:00:50.6]} 37. Bd3 {[%clk
0:01:16.9]} 37... b4 {[%clk 0:00:50.5]} 38. Bc4 {[%clk 0:01:15.9]} 38... Ra5
{[%clk 0:00:50.6]} 39. Kg2 {[%clk 0:01:15.6]} 39... Rxa2+ {[%clk 0:00:50.6]} 40.
Kh3 {[%clk 0:01:16.5]} 40... Kf6 {[%clk 0:00:46.8]} 41. Kg4 {[%clk 0:01:16.5]}
41... Ke5 {[%clk 0:00:47.3]} 42. Kh5 {[%clk 0:01:15.9]} 42... Rh2+ {[%clk
0:00:45.1]} 43. Kg6 {[%clk 0:01:15.2]} 43... Rf2 {[%clk 0:00:44.1]} 44. Kxg7
{[%clk 0:01:14.1]} 44... Rxf3 {[%clk 0:00:44.3]} 45. Kf7 {[%clk 0:01:14.9]}
45... Rc3 {[%clk 0:00:44]} 0-1

[Event "*** SCC Grand Prix: Titled Tuesday Blitz"]
[Site "Chess.com"]
[Date "2020.08.04"]
[Round "10"]
[White "afgano29"]
[Black "maxip32"]
[Result "0-1"]
[WhiteElo "2624"]
[BlackElo "2491"]
[TimeControl "180+1"]
[EndTime "15:36:40 PDT"]
[Termination "maxip32 won by checkmate"]

1. d4 {[%clk 0:03:00.8]} 1... Nf6 {[%clk 0:02:59.4]} 2. c4 {[%clk 0:03:00.4]}
2... g6 {[%clk 0:02:59.6]} 3. Nc3 {[%clk 0:02:59.7]} 3... Bg7 {[%clk 0:03:00.2]}
4. Nf3 {[%clk 0:02:59.6]} 4... O-O {[%clk 0:02:58.8]} 5. e4 {[%clk 0:02:59.9]}
5... d6 {[%clk 0:02:58.8]} 6. Be2 {[%clk 0:03:00.3]} 6... e5 {[%clk 0:02:58.5]}
7. O-O {[%clk 0:03:00.3]} 7... Nc6 {[%clk 0:02:58.2]} 8. d5 {[%clk 0:02:59.7]}
8... Ne7 {[%clk 0:02:58.6]} 9. Nd2 {[%clk 0:02:59.2]} 9... Ne8 {[%clk 0:02:54]}
10. b4 {[%clk 0:02:59.1]} 10... f5 {[%clk 0:02:54.3]} 11. c5 {[%clk 0:02:53.1]}
11... Nf6 {[%clk 0:02:50]} 12. f3 {[%clk 0:02:46.6]} 12... Rf7 {[%clk
0:02:41.2]} 13. Nc4 {[%clk 0:02:40.8]} 13... f4 {[%clk 0:02:40.2]} 14. Bd2
{[%clk 0:02:34.1]} 14... g5 {[%clk 0:02:37.9]} 15. Be1 {[%clk 0:02:30]} 15...
Ng6 {[%clk 0:02:30.8]} 16. Bf2 {[%clk 0:02:26.1]} 16... Bf8 {[%clk 0:02:23.9]}
17. cxd6 {[%clk 0:02:25.1]} 17... cxd6 {[%clk 0:02:23.6]} 18. Rc1 {[%clk
0:02:23.6]} 18... h5 {[%clk 0:02:18.3]} 19. h3 {[%clk 0:02:23.4]} 19... Bd7
{[%clk 0:02:12.8]} 20. a4 {[%clk 0:02:21.4]} 20... Rg7 {[%clk 0:01:59.2]} 21.
Nb5 {[%clk 0:01:49.3]} 21... g4 {[%clk 0:01:51.3]} 22. fxg4 {[%clk 0:01:30.8]}
22... hxg4 {[%clk 0:01:52.2]} 23. hxg4 {[%clk 0:01:24]} 23... Nxe4 {[%clk
0:01:40.8]} 24. Bxa7 {[%clk 0:01:22.9]} 24... Bxb5 {[%clk 0:01:39.7]} 25. Bb6
{[%clk 0:01:21.8]} 25... Qh4 {[%clk 0:01:39.4]} 26. axb5 {[%clk 0:01:19.8]}
26... Ng3 {[%clk 0:01:24.7]} 27. Bd3 {[%clk 0:01:13.9]} 27... e4 {[%clk
0:01:23]} 28. Bb1 {[%clk 0:01:12.8]} 28... e3 {[%clk 0:01:19.3]} 29. Nxe3 {[%clk
0:01:12.5]} 29... fxe3 {[%clk 0:01:18]} 30. Bxe3 {[%clk 0:01:13.4]} 30... Re8
{[%clk 0:01:06.4]} 31. Qf3 {[%clk 0:01:08.5]} 31... Ne5 {[%clk 0:00:57.7]} 32.
Qf6 {[%clk 0:00:49]} 32... Ne2# {[%clk 0:00:42]} 0-1

[Event "*** SCC Grand Prix: Titled Tuesday Blitz"]
[Site "Chess.com"]
[Date "2020.08.04"]
[Round "10"]
[White "Vladislav_Chizhikov"]
[Black "ellatambien"]
[Result "1-0"]
[WhiteElo "2445"]
[BlackElo "2326"]
[TimeControl "180+1"]
[EndTime "15:36:44 PDT"]
[Termination "Vladislav_Chizhikov won on time"]

1. e4 {[%clk 0:03:00.9]} 1... e5 {[%clk 0:02:58.8]} 2. Nf3 {[%clk 0:02:59.4]}
2... Nc6 {[%clk 0:02:58.8]} 3. Bc4 {[%clk 0:02:59.7]} 3... Nf6 {[%clk
0:02:58.8]} 4. O-O {[%clk 0:02:59]} 4... Nxe4 {[%clk 0:02:55.8]} 5. Nc3 {[%clk
0:02:58.3]} 5... Nxc3 {[%clk 0:02:47]} 6. dxc3 {[%clk 0:02:59.2]} 6... Be7
{[%clk 0:02:47.3]} 7. Qd5 {[%clk 0:02:55.5]} 7... O-O {[%clk 0:02:46.7]} 8. Nxe5
{[%clk 0:02:55.4]} 8... Nxe5 {[%clk 0:02:21.4]} 9. Qxe5 {[%clk 0:02:56.3]} 9...
c6 {[%clk 0:02:20.6]} 10. Qg3 {[%clk 0:02:56.8]} 10... d5 {[%clk 0:02:19.5]} 11.
Bd3 {[%clk 0:02:56.7]} 11... Bh4 {[%clk 0:02:14.4]} 12. Qf3 {[%clk 0:02:56]}
12... Bf6 {[%clk 0:02:10.1]} 13. Bf4 {[%clk 0:02:55.1]} 13... Re8 {[%clk
0:02:09.2]} 14. Rfe1 {[%clk 0:02:54.4]} 14... Bd7 {[%clk 0:02:03.7]} 15. Qg3
{[%clk 0:02:53.4]} 15... Qb6 {[%clk 0:01:57.9]} 16. b3 {[%clk 0:02:50.9]} 16...
Bxc3 {[%clk 0:01:32.6]} 17. Bxh7+ {[%clk 0:02:49.5]} 17... Kxh7 {[%clk
0:01:31.7]} 18. Qxc3 {[%clk 0:02:49.9]} 18... Bf5 {[%clk 0:01:27.1]} 19. a4
{[%clk 0:02:38.2]} 19... d4 {[%clk 0:01:14]} 20. Qd2 {[%clk 0:02:36.6]} 20...
Qc5 {[%clk 0:01:11.5]} 21. Rac1 {[%clk 0:02:19.3]} 21... Rxe1+ {[%clk
0:01:01.3]} 22. Rxe1 {[%clk 0:02:09.8]} 22... Bxc2 {[%clk 0:00:53.2]} 23. b4
{[%clk 0:01:31.9]} 23... Qc3 {[%clk 0:00:52.1]} 24. a5 {[%clk 0:01:32.1]} 24...
Qxd2 {[%clk 0:00:14.1]} 25. Bxd2 {[%clk 0:01:33]} 25... b6 {[%clk 0:00:12.6]}
26. Re7 {[%clk 0:01:29.8]} 26... bxa5 {[%clk 0:00:11.2]} 27. bxa5 {[%clk
0:01:29.4]} 27... Rc8 {[%clk 0:00:08.8]} 28. Rxa7 {[%clk 0:01:23.4]} 28... c5
{[%clk 0:00:08.7]} 29. Rd7 {[%clk 0:01:23.8]} 29... f6 {[%clk 0:00:06.1]} 30. a6
{[%clk 0:01:23.7]} 30... Be4 {[%clk 0:00:05.5]} 31. a7 {[%clk 0:01:23]} 31...
Ba8 {[%clk 0:00:05.3]} 32. f4 {[%clk 0:01:16.1]} 32... Kg6 {[%clk 0:00:05.3]}
33. g4 {[%clk 0:01:15.5]} 1-0

[Event "*** SCC Grand Prix: Titled Tuesday Blitz"]
[Site "Chess.com"]
[Date "2020.08.04"]
[Round "10"]
[White "Fortitudine"]
[Black "Caterpiller35"]
[Result "0-1"]
[WhiteElo "2264"]
[BlackElo "2379"]
[TimeControl "180+1"]
[EndTime "15:36:50 PDT"]
[Termination "Caterpiller35 won by checkmate"]

1. c4 {[%clk 0:03:00.9]} 1... e5 {[%clk 0:02:59.4]} 2. g3 {[%clk 0:03:01.7]}
2... Nf6 {[%clk 0:02:58.5]} 3. Bg2 {[%clk 0:03:01]} 3... d5 {[%clk 0:02:59.4]}
4. cxd5 {[%clk 0:03:01.5]} 4... Nxd5 {[%clk 0:03:00.3]} 5. Nc3 {[%clk
0:03:01.9]} 5... Nb6 {[%clk 0:02:58.8]} 6. d3 {[%clk 0:03:01.7]} 6... Nc6 {[%clk
0:02:59.4]} 7. Be3 {[%clk 0:02:52.9]} 7... Be7 {[%clk 0:02:59.3]} 8. Nf3 {[%clk
0:02:52.3]} 8... Be6 {[%clk 0:02:42.5]} 9. O-O {[%clk 0:02:50.9]} 9... f5 {[%clk
0:02:39.2]} 10. a3 {[%clk 0:02:45.7]} 10... g5 {[%clk 0:02:38.4]} 11. Na4 {[%clk
0:02:30]} 11... g4 {[%clk 0:02:35]} 12. Nd2 {[%clk 0:02:09.4]} 12... h5 {[%clk
0:02:31.7]} 13. Nc5 {[%clk 0:02:05]} 13... Bxc5 {[%clk 0:02:28.8]} 14. Bxc5
{[%clk 0:02:05.9]} 14... h4 {[%clk 0:02:29.7]} 15. Nc4 {[%clk 0:01:41.5]} 15...
Qg5 {[%clk 0:01:35.6]} 16. f4 {[%clk 0:00:42.1]} 16... gxf3 {[%clk 0:01:22.2]}
17. Rxf3 {[%clk 0:00:39.6]} 17... O-O-O {[%clk 0:01:15.9]} 18. Nxb6+ {[%clk
0:00:33.8]} 18... axb6 {[%clk 0:01:15.1]} 19. Be3 {[%clk 0:00:32.4]} 19... Qh5
{[%clk 0:01:13.5]} 20. Qa4 {[%clk 0:00:27.1]} 20... hxg3 {[%clk 0:00:54.8]} 21.
hxg3 {[%clk 0:00:28]} 21... f4 {[%clk 0:00:55]} 22. gxf4 {[%clk 0:00:25.7]}
22... Rdg8 {[%clk 0:00:52.3]} 23. f5 {[%clk 0:00:14.7]} 23... Qh1+ {[%clk
0:00:47]} 24. Kf2 {[%clk 0:00:15.2]} 24... Rxg2# {[%clk 0:00:47.2]} 0-1

[Event "*** SCC Grand Prix: Titled Tuesday Blitz"]
[Site "Chess.com"]
[Date "2020.08.04"]
[Round "10"]
[White "AbigailCabezas"]
[Black "cukin84"]
[Result "0-1"]
[WhiteElo "1385"]
[BlackElo "2166"]
[TimeControl "180+1"]
[EndTime "15:36:51 PDT"]
[Termination "cukin84 won by checkmate"]

1. e4 {[%clk 0:03:00.9]} 1... c6 {[%clk 0:02:59.5]} 2. Nf3 {[%clk 0:02:59.8]}
2... d5 {[%clk 0:02:59.6]} 3. e5 {[%clk 0:02:58.1]} 3... Bg4 {[%clk 0:02:58.9]}
4. d4 {[%clk 0:02:55.6]} 4... e6 {[%clk 0:02:59]} 5. Nbd2 {[%clk 0:02:54.6]}
5... c5 {[%clk 0:02:58.1]} 6. c3 {[%clk 0:02:54]} 6... Nc6 {[%clk 0:02:57.7]} 7.
h3 {[%clk 0:02:53.5]} 7... Bh5 {[%clk 0:02:57.2]} 8. Bb5 {[%clk 0:02:51.2]} 8...
a6 {[%clk 0:02:55.2]} 9. Bxc6+ {[%clk 0:02:47.3]} 9... bxc6 {[%clk 0:02:55.2]}
10. O-O {[%clk 0:02:45.3]} 10... Nh6 {[%clk 0:02:48.4]} 11. Qc2 {[%clk
0:02:23.3]} 11... Bg6 {[%clk 0:02:46.8]} 12. Qa4 {[%clk 0:02:21.7]} 12... Qd7
{[%clk 0:02:40.5]} 13. Nb3 {[%clk 0:02:18.5]} 13... Bd3 {[%clk 0:02:33.1]} 14.
Rd1 {[%clk 0:02:09.3]} 14... Bb5 {[%clk 0:02:32.3]} 15. Qa3 {[%clk 0:02:07.2]}
15... c4 {[%clk 0:02:30.4]} 16. Nc5 {[%clk 0:02:06.9]} 16... Qa7 {[%clk
0:02:25.4]} 17. Bxh6 {[%clk 0:02:03]} 17... gxh6 {[%clk 0:02:24.6]} 18. b4
{[%clk 0:02:00.4]} 18... cxb3 {[%clk 0:02:17.4]} 19. axb3 {[%clk 0:01:56.8]}
19... Be2 {[%clk 0:02:07]} 20. Rd2 {[%clk 0:01:53.3]} 20... Bxf3 {[%clk
0:02:07.1]} 21. gxf3 {[%clk 0:01:51.1]} 21... Bxc5 {[%clk 0:02:06.4]} 22. dxc5
{[%clk 0:01:47.4]} 22... Rg8+ {[%clk 0:02:00.8]} 23. Kf1 {[%clk 0:01:43.4]}
23... Qb7 {[%clk 0:01:57.8]} 24. b4 {[%clk 0:01:35.2]} 24... Qb5+ {[%clk
0:01:54.2]} 25. Re2 {[%clk 0:01:33.2]} 25... Rg5 {[%clk 0:01:49.5]} 26. Qa5
{[%clk 0:01:27.6]} 26... Qc4 {[%clk 0:01:35.1]} 27. Qc7 {[%clk 0:01:22.5]} 27...
Rd8 {[%clk 0:01:32.2]} 28. Qxc6+ {[%clk 0:01:21.6]} 28... Kf8 {[%clk 0:01:31.9]}
29. Qc7 {[%clk 0:01:16.3]} 29... Re8 {[%clk 0:01:26]} 30. Qd6+ {[%clk
0:01:15.8]} 30... Kg7 {[%clk 0:01:25.2]} 31. Re1 {[%clk 0:01:04.6]} 31... Qh4
{[%clk 0:01:19.4]} 32. Re3 {[%clk 0:00:56.2]} 32... Qc4+ {[%clk 0:01:10.8]} 33.
R1e2 {[%clk 0:00:51.2]} 33... Rg8 {[%clk 0:01:00.2]} 34. Ke1 {[%clk 0:00:33.3]}
34... Rg1+ {[%clk 0:00:58]} 35. Kd2 {[%clk 0:00:33.2]} 35... Qa2+ {[%clk
0:00:57.8]} 36. Kd3 {[%clk 0:00:32.7]} 36... Rd1+ {[%clk 0:00:57]} 37. Rd2
{[%clk 0:00:29.1]} 37... Qxd2# {[%clk 0:00:55.7]} 0-1